Cogmind - Beta 15 @@@ ROGUE MODE // 2025.05.10 @ 12:34:05 Player: gorb Result: Destroyed by G-34 Mercenary with Small Laser Performance ------------- Evolutions (1) 500 Regions Visited (4) 800 Robots Destroyed (40) 200 Value Destroyed (972) 972 Prototype IDs (2) 40 Alien Tech Used (0) 0 Bonus (0) 0 TOTAL SCORE: 2512 Bonus ------- None Cogmind --------- Core Integrity 0/400 Matter 51/300 Energy 279/280 System Corruption 0% Temperature Cool (6) Movement Core (500) Ox9 Location -9/Storage Parts ------- > --- POWER (1) -------- Cooled Ion Engine > --- PROPULSION (3) --- (None) > --- UTILITY (2) ------ Large Storage Unit > --- WEAPON (3) ------- (None) > --- INVENTORY (15) --- Light Ion Engine Light Ion Engine Flight Unit Flight Unit Small Storage Unit Improved Light Armor Plating Field Recycling Unit (0) Assault Rifle Light Assault Rifle Mini Grenade Launcher Mini Grenade Launcher Mini Grenade Launcher Peak State ------------ > --- POWER ------------ Light Ion Engine > --- PROPULSION ------- Aluminum Leg Aluminum Leg > --- UTILITY ---------- Large Storage Unit Experimental Sensor Array > --- WEAPON ----------- Assault Rifle Light Assault Rifle Mini Grenade Launcher > --- INVENTORY -------- Light Ion Engine Light Ion Engine Flight Unit Flight Unit Small Storage Unit Improved Light Armor Plating Field Recycling Unit Light Assault Rifle [Rating: 18] Favorites ----------- Power Ion Engine Engine Ion Engine Propulsion Light Treads Treads Light Treads Leg Aluminum Leg Utility Large Storage Unit Device Experimental Sensor Array Storage Large Storage Unit Protection Improved Light Armor Plating Weapon Mini Grenade Launcher Ballistic Gun Light Assault Rifle Launcher Mini Grenade Launcher Build | -11 -10 -10 -9 -9 ------- Run | Yrd Mat Min Mat Sto Slots Evolved 2 | . . . 2 . Power . | . . . . . Propulsion 1 | . . . 1 . Utility . | . . . . . Weapon 1 | . . . 1 . Parts Attached 25 | 6 2 8 2 7 Power 4 | 1 . 1 1 1 Engine 4 | 1 . 1 1 1 Core . | . . . . . Reactor . | . . . . . Propulsion 7 | 2 . 2 . 3 Treads 2 | 2 . . . . Leg 5 | . . 2 . 3 Wheel . | . . . . . Hover . | . . . . . Flight . | . . . . . Utility 5 | 1 1 2 1 . Device 2 | . . 2 . . Storage 2 | 1 1 . . . Processor . | . . . . . Hackware . | . . . . . Protection 1 | . . . 1 . Artifact . | . . . . . Weapon 9 | 2 1 3 . 3 Energy Gun . | . . . . . Energy Cannon . | . . . . . Ballistic Gun 3 | 2 . 1 . . Ballistic Cannon . | . . . . . Launcher 6 | . 1 2 . 3 Special Weapon . | . . . . . Impact Weapon . | . . . . . Slashing Weapon . | . . . . . Piercing Weapon . | . . . . . Special Melee Weapon . | . . . . . Unidentified Prototypes 2 | . . 1 . 1 Parts Lost 17 | . . 5 4 8 Power 2 | . . 1 1 . Propulsion 6 | . . 1 1 4 Utility 2 | . . 1 . 1 Weapon 7 | . . 2 2 3 Highest Loss Streak 6 | . . 3 4 6 To Critical Strikes . | . . . . . Average Backups 8 | 3 6 10 7 10 Power 1 | . 1 2 1 1 Propulsion 2 | 2 3 3 2 2 Utility 2 | . 1 1 2 3 Weapon 2 | . . 2 . 4 Tool/Special . | . . . . . Unused Backups 8 | . . . . 8 Power 1 | . . . . 1 Propulsion 2 | . . . . 2 Utility 2 | . . . . 2 Weapon 3 | . . . . 3 Tool/Special . | . . . . . Average Slot Usage (%) 80 | . 85 87 77 72 Engine 11 | . 14 12 9 11 Treads 12 | . 28 23 . . Leg 9 | . . 3 18 16 Device 3 | . . 7 7 . Storage 12 | . 14 14 11 11 Protection 2 | . . . 3 4 Ballistic Gun 13 | . 20 17 20 4 Launcher 14 | . 7 9 7 25 Peak Build Rating 18 | 6 6 17 18 18 Average Rating 10 | 3 6 9 14 12 On Entrance 7 | . 6 6 17 9 Naked Turns . | . . . . . Heaviest Build 31 | 13 29 31 29 31 Greatest Support 40 | 40 40 40 20 30 Greatest Overweight (x) 10 | 1 . 1 2 10 Average Overweight (x) . | . . . 1 2 Largest Inventory Capacity 15 | 8 15 15 15 15 Average Capacity 14 | 7 14 15 15 15 Most Carried 13 | 8 9 13 8 13 Average Carried 8 | 3 6 10 7 10 Final Capacity 15 | 8 15 15 15 15 Final Carried 12 | 3 9 8 6 12 Class Distribution -------------------- 64% | Mutant 11% | Skirmisher 8% | Gunner 8% | Tank 7% | Bomber Dominant Class ---------------- Mutant | -10/Materials Mutant | -10/Mines Mutant | -9/Materials Gunner | -9/Storage Resources | -11 -10 -10 -9 -9 ----------- Run | Yrd Mat Min Mat Sto Matter Collected 623 | 195 77 246 27 78 Remotely . | . . . . . Salvage Created 841 | . 185 189 166 301 Parts 62 | . 17 15 4 26 Haulers Intercepted 2 | . . . . 2 Recyclers Shooed 1 | . 1 . . . Parts Field Recycled . | . . . . . Retrieved Matter . | . . . . . Parts Self-Destructed . | . . . . . Prevented . | . . . . . Kills | -11 -10 -10 -9 -9 ------- Run | Yrd Mat Min Mat Sto Combat Hostiles Destroyed 26 | . 8 6 3 9 Guns 6 | . 3 1 2 . AOE 20 | . 5 5 1 9 Classes Destroyed 10 | . 4 2 1 3 Worker 1 | . . . . 1 Builder 4 | . 1 1 . 2 Tunneler 1 | . . 1 . . Hauler 2 | . . . . 2 Recycler 2 | . . 1 1 . Watcher 4 | . 2 . 2 . Swarmer 6 | . 3 3 . . Grunt 16 | . 5 3 2 6 Brawler 1 | . . . . 1 Sentry 3 | . . . 1 2 Best Kill Streak 7 | . 4 3 6 7 Combat Bots Only 4 | . 3 3 3 4 Max Kills in Single Turn 5 | . 2 3 3 5 Gunslinging . | . . . . . Exploded 3 | . 2 2 1 3 Melee . | . . . . . Uniques/NPCs Destroyed . | . . . . . Combat | -11 -10 -10 -9 -9 -------- Run | Yrd Mat Min Mat Sto Hostile Shots Fired 221 | . 48 37 33 103 Missed 61 | . 11 8 7 35 Hits 160 | . 37 29 26 68 Melee 1 | . . . . 1 Projectile 159 | . 37 29 26 67 AOE 2 | . . 2 . . Critical Strikes 1 | . . . 1 . Damage Taken 2274 | . 357 470 373 1074 Core 564 | . 78 80 45 361 Absorbed by Shields . | . . . . . Core Remaining (%) 68 | 100 . 36 . . Volleys Fired 43 | . 16 12 10 5 Largest 3 | . 2 2 3 3 Hottest 90 | . 50 53 70 90 Shots Fired 92 | . 32 22 23 15 Gun 54 | . 26 12 16 . Cannon . | . . . . . Launcher 38 | . 6 10 7 15 Special . | . . . . . Kinetic 54 | . 26 12 16 . Thermal . | . . . . . Explosive 38 | . 6 10 7 15 Electromagnetic . | . . . . . Robot Hit Streak 9 | . 5 6 7 9 Robot Miss Streak 6 | . 6 3 3 2 Penetration Max . | . . . . . Secondary Targets 1 | . 1 . . . Max Gunslinging Chain 1 | . 1 . . . Shots Hit Robots 48 | . 15 10 14 9 Core Hits 64 | . 18 11 9 26 Critical Kills . | . . . . . Critical Parts Destroyed . | . . . . . Critical Strikes . | . . . . . Melee Attacks . | . . . . . Impact . | . . . . . Slashing . | . . . . . Piercing . | . . . . . Sneak Attacks . | . . . . . Combat Hostiles . | . . . . . Follow-up Attacks . | . . . . . Damage Inflicted 2352 | . 427 481 446 998 Guns 267 | . 106 48 113 . Cannons . | . . . . . Explosions 2079 | . 321 433 333 992 Melee . | . . . . . Ramming 6 | . . . . 6 Kinetic 267 | . 106 48 113 . Thermal . | . . . . . Explosive 2079 | . 321 433 333 992 Electromagnetic . | . . . . . Impact . | . . . . . Slashing . | . . . . . Piercing . | . . . . . Highest Corruption . | . . . . . Average Corruption . | . . . . . Corruption Purged . | . . . . . Corruption Blocked . | . . . . . Overload Shots . | . . . . . Overflow Damage 52 | . 8 20 15 9 Projectiles . | . . . . . Explosions 52 | . 8 20 15 9 Melee . | . . . . . Knockbacks . | . . . . . Impact . | . . . . . Kinetic . | . . . . . Secondary . | . . . . . Self-Inflicted Damage 200 | . 6 34 39 121 Shots 6 | . 1 1 1 3 Rammed . | . . . . . Targets Rammed 2 | . . . . 2 Kicked 2 | . . . . 2 Crushed . | . . . . . Highest Temperature 54 | . 32 21 30 54 Average Temperature 14 | . 14 9 15 21 Received Heat Transfer 699 | . 102 153 150 294 Siege Activations . | . . . . . Martial Activations . | . . . . . Shielding Activations . | . . . . . Robots Disrupted . | . . . . . Combat Hostiles . | . . . . . Robots Corrupted . | . . . . . Combat Hostiles . | . . . . . Parts Fried . | . . . . . Impact Corruptions . | . . . . . Robots Melted . | . . . . . Combat Hostiles . | . . . . . Parts Melted . | . . . . . Heat Transferred . | . . . . . Parts Sabotaged . | . . . . . Parts Stolen . | . . . . . Parts Stripped . | . . . . . Power Chain Reactions . | . . . . . Alert | -11 -10 -10 -9 -9 ------- Run | Yrd Mat Min Mat Sto Maximum Alert Level 1 | . . . . 1 Low Security (%) 84 | 100 100 100 100 52 Level 1 15 | . . . . 47 Level 2 . | . . . . . Level 3 . | . . . . . Level 4 . | . . . . . Level 5 . | . . . . . High Security . | . . . . . Max Security . | . . . . . Peak Influence 297 | . 160 107 124 297 Initial 39 | . . 39 33 39 Average 88 | . 68 73 48 143 Influence Increases 1029 | . 250 238 174 367 Destroy 0b10 Robot/C 520 | . 160 120 60 180 Destroy 0b10 Robot/NC 70 | . 15 15 15 25 Destroy Leader 132 | . 34 30 24 44 Disable Machine 75 | . 15 . 30 30 Destroy Structure 232 | . 26 73 45 88 Influence Decreases 868 | . 150 251 167 300 Entered New Map 170 | . . 61 54 55 Time Decay 488 | . 100 140 83 165 Lost Part 160 | . . 50 30 80 Purge Threat 50 | . 50 . . . Squads Dispatched 5 | . 1 . 1 3 Investigation 1 | . 1 . . . Extermination . | . . . . . Reinforcement 4 | . . . 1 3 Assault . | . . . . . Garrison . | . . . . . Intercept . | . . . . . Searches Triggered . | . . . . . Construction Impeded 1 | . . . . 1 Haulers Reinforced . | . . . . . Active Scanning Responses . | . . . . . Cargo Convoy Interrupts . | . . . . . Stealth | -11 -10 -10 -9 -9 --------- Run | Yrd Mat Min Mat Sto Distress Signals 1 | . . . . 1 Communications Jammed . | . . . . . Distress Signals . | . . . . . Times Spotted 47 | . 14 9 6 18 Peak Tracking Total 7 | . 5 3 5 7 Tactical Retreats . | . . . . . Traps | -11 -10 -10 -9 -9 ------- Run | Yrd Mat Min Mat Sto Traps Triggered 1 | . 1 . . . Indirectly . | . . . . . Trap Hack Attempts . | . . . . . Triggered . | . . . . . Disarmed . | . . . . . Reprogrammed . | . . . . . Reused . | . . . . . Traps Extracted . | . . . . . Installed . | . . . . . Triggered . | . . . . . Machines | -11 -10 -10 -9 -9 ---------- Run | Yrd Mat Min Mat Sto Machines Disabled 6 | . 2 . 2 2 Max in Single Turn 1 | . 1 . 1 1 Machines Repaired . | . . . . . Machines Dismantled . | . . . . . Machines Sabotaged . | . . . . . Overloaded Fab Kills . | . . . . . Hacking | -11 -10 -10 -9 -9 --------- Run | Yrd Mat Min Mat Sto Machines Accessed 3 | . 2 . . 1 Terminals 3 | . 2 . . 1 Fabricators . | . . . . . Repair Stations . | . . . . . Recycling Units . | . . . . . Scanalyzers . | . . . . . Garrison Access . | . . . . . Total Hacks 8 | . 6 . . 2 Successful 5 | . 4 . . 1 Failed 3 | . 2 . . 1 Catastrophic 1 | . . . . 1 Database Lockouts . | . . . . . Manual . | . . . . . Terminals 8 | . 6 . . 2 Fabricators . | . . . . . Repair Stations . | . . . . . Recycling Units . | . . . . . Scanalyzers . | . . . . . Garrison Access . | . . . . . Terminal Hacks 5 | . 4 . . 1 Record 3 | . 3 . . . Open Door 1 | . . . . 1 Unreport Threat 1 | . 1 . . . Fabricator Hacks . | . . . . . Repair Station Hacks . | . . . . . Recycling Unit Hacks . | . . . . . Scanalyzer . | . . . . . Garrison Access Hacks . | . . . . . Unauthorized Hacks . | . . . . . Terminals . | . . . . . Fabricators . | . . . . . Repair Stations . | . . . . . Recycling Units . | . . . . . Scanalyzers . | . . . . . Garrison Access . | . . . . . Data Cores Recovered . | . . . . . Used . | . . . . . Hacking Detections 3 | . 2 . . 1 Full Trace Events 1 | . 1 . . . Feedback Events . | . . . . . Feedback Blocked . | . . . . . Robot Schematics Acquired . | . . . . . Robots Built . | . . . . . Authchips . | . . . . . Time . | . . . . . Total Robot Build Rating . | . . . . . Part Schematics Acquired . | . . . . . Parts Built . | . . . . . Authchips . | . . . . . Time . | . . . . . Total Part Build Rating . | . . . . . Parts Repaired . | . . . . . Time . | . . . . . Parts Recycled . | . . . . . Recycled Matter . | . . . . . Retrieved Matter . | . . . . . Retrieved Components . | . . . . . Parts Scanalyzed . | . . . . . Part Schematics Acquired . | . . . . . Parts Damaged . | . . . . . Bothacking | -11 -10 -10 -9 -9 ------------ Run | Yrd Mat Min Mat Sto Used RIF Installer . | . . . . . Robots Hacked . | . . . . . Non-combat . | . . . . . Combat . | . . . . . Robot Hacks Applied . | . . . . . Relay Couplers Released . | . . . . . Fabnet Peak Effective % . | . . . . . Robots Rewired . | . . . . . Allies Hacked . | . . . . . Hacks Repelled . | . . . . . Allies | -11 -10 -10 -9 -9 -------- Run | Yrd Mat Min Mat Sto Total Allies . | . . . . . Largest Group . | . . . . . Highest-Rated Group . | . . . . . Highest-Rated Ally . | . . . . . Total Orders . | . . . . . Ally Attacks . | . . . . . Total Damage . | . . . . . Kills . | . . . . . Allies Corrupted . | . . . . . Allies Melted . | . . . . . Intel | -11 -10 -10 -9 -9 ------- Run | Yrd Mat Min Mat Sto Active Infowar (turns) 329 | . . 166 138 25 Sensors 258 | . . 95 138 25 Structural 71 | . . 71 . . Robot Analysis Total . | . . . . . Derelict Logs Recovered 1 | . . 1 . . Drone Launches . | . . . . . Drone Recoveries . | . . . . . Exploration | -11 -10 -10 -9 -9 ------------- Run | Yrd Mat Min Mat Sto Turns Passed 1270 | 53 281 299 212 425 Spaces Moved 572 | 39 142 147 85 159 Core 41 | 23 . . . 18 Treads 287 | 16 142 129 . . Legs 244 | . . 18 85 141 Wheels . | . . . . . Hover . | . . . . . Flight . | . . . . . Fastest Speed 50 | 50 160 160 190 120 Average Speed 189 | 102 160 170 210 245 Slowest Speed 550 | 160 160 240 260 550 Overloaded Moves . | . . . . . Propulsion Burnouts . | . . . . . Robots Hopped . | . . . . . Potential Cave-ins . | . . . . . Cave-ins Triggered . | . . . . . Exploration Rate (%) 23 | 3 28 35 12 38 Regions Visited 4 Branch Regions 2 Pre-discovered Areas . | . . . . . Known Exits Taken . | . . . . . Unknown Exits Taken 4 | 1 1 1 1 . Scrap Searched 1 | . . 1 . . Spaces Dug . | . . . . . Terrain Destroyed 283 | . 27 96 44 116 Melee . | . . . . . Projectile . | . . . . . AOE 283 | . 27 96 44 116 Terrain Rammed . | . . . . . Walls Destroyed . | . . . . . Machines Disabled . | . . . . . Actions | -11 -10 -10 -9 -9 --------- Run | Yrd Mat Min Mat Sto Total 679 | 52 167 177 99 184 Wait 4 | . . 4 . . Move 568 | 38 141 146 84 159 Hop . | . . . . . Pick Up 32 | 8 7 6 1 10 Fast Attach 1 | 1 . . . . Attach 19 | 5 . 7 3 4 Detach . | . . . . . Swap 8 | . 2 1 1 4 Drop 2 | . 1 1 . . Fire 43 | . 16 12 10 5 Melee . | . . . . . Ram . | . . . . . Kick 2 | . . . . 2 Crush . | . . . . . Escape Stasis . | . . . . . Rewire . | . . . . . Trap . | . . . . . Miscellaneous . | . . . . . Route ------- -11/Scrapyard -10/Materials -10/Mines -9/Materials -9/Storage History --------- Turn | Location | Event 6 | -11/Scrapyard | Discovered new exit (range 15) 54 | -11/Scrapyard | Entered Materials 208 | -10/Materials | Discovered new exit (range 13) 302 | -10/Materials | Build established: Mutant 335 | -10/Materials | Entered Mines 417 | -10/Mines | Assembled infested the area 420 | -10/Mines | Received a Rocket Launcher from a helpful Derelict 422 | -10/Mines | Assisted by a Guerilla fighting off Assembled 459 | -10/Mines | Learned Materials emergency access door positions 474 | -10/Mines | Core integrity fell below 50% 515 | -10/Mines | Found a damaged Exp. Sensor Array with a note attached 538 | -10/Mines | Found Prototype Device 539 | -10/Mines | Identified Exp. Sensor Array 616 | -10/Mines | Lost 3 parts (1p1n1w) 621 | -10/Mines | Discovered new exit (range 8) 634 | -10/Mines | Entered Materials 634 | -9/Materials | Evolved 2 slots: Propulsion x1, Weapon x1 809 | -9/Materials | Lost 4 parts (1p1n2w) 810 | -9/Materials | Discovered new exit (range 14) 846 | -9/Materials | Entered Storage 1227 | -9/Storage | Core integrity fell below 50% 1260 | -9/Storage | Core integrity fell below 20% 1271 | -9/Storage | Destroyed by G-34 Mercenary with Small Laser Last Messages --------------- U-05 Engineer builds a Wall. The unstable cave ceiling collapses. U-05 Engineer lays Concrete. Acquired 11 matter. U-05 Engineer lays Concrete. U-05 Engineer builds a Door. U-05 Engineer lays Concrete. Kicked U-05 Engineer. U-05 Engineer lays Concrete. ALERT: Construction progress impeded, dispatching reinforcements to local area. U-05 Engineer lays Concrete. U-05 Engineer builds a Wall. K-01 Serf collects debris. Kicked U-05 Engineer. Connecting with Door Terminal... Aluminum Leg destroyed. Mni. Grenade Launcher destroyed. ALERT: Hostiles spotted, dispatching reinforcements to Terminal S013. Map ----- +----------------------------------------------------+ | ?????????????????????????????????????????????????? | | ?????????????????????????????????????????????????? | | ?????????????????????????????????????????????????? | | ?????????????????????????????????????????????????? | | ?????????????????????????????????????????????????? | | ?????????????????????????????????????????????????? | | ?????????????????????????????????????????????????? | | ?????????????????????????????????????????????????? | | ?????????????????????????????????????????????????? | | ?????????????????????????????????????????????????? | | ?????????????????????????????????????????????????? | | ?????????????????????????????????????????????????? | | ?????????????????????????????????????????????????? | | ?????????????????????????????????????????????????? | | ?????????????????????????????????????????????????? | | ?????????????????????????????????????????????????? | | ?????????????????????????????????????????????????? | | ???????????????????###########???????????????????? | | ???????????????????# #???????????????????? | | ???????????????????# #???????????????????? | | ???????????????????# #???????????????????? | | ??????????????????## """ """ #??????? ?????????? | | ??????????????????# """ """ #??????+ ?????????? | | ???????????????????# """ """ #??????# ?????????? | | ???????????????????# Y #??????# ?????????? | | ???????????????????# @ #"?????# #????????? | | ???????????????????#####g#####" "#??# ????????? | | ??????????????####?#### Y + # #????????? | | ??????????????#[[[[" # # """ """?# #????????? | | ??????????????# + # """ "???# #????????? | | ??????????????#]]]]" # # ?"" ????# #????????? | | ???????????????????#T## +???? ????# #????????? | | ???????????????????##?# #?????????#^ #????????? | | ??????????????????????# #?????????# ########## | | ??????????????????????# #?????????# | | ??????????????????????# #?????????# | | ??????????????????????# ########??# | | ??????????????????????# #####+######## | | ??????????????????????# # ## | | ??????????????????????# # """ """ ## | | ??????????????????????#####/###### """ """ ## | | ???????????????????????# ## """ """ ## | | ???????????????????????# """ ## ## | | ???????????????????????# """ ######/######## | | ???????????????????????# """ ##### | | ???????????????????????# + | | ??????????????????????# """ ##### | | ??????????????????????## """ ## # **######### | | ???????????????????????# """ #?# # **# ######+ | | ???????????????????????# #?# # = #* | +----------------------------------------------------+ Best States ------------- Heat Dissipation 28 Energy Generation 14 Energy Capacity 280 Matter Stores 300 Matter Capacity 300 Sight Range 16 Robot Scan Range 20 Terrain Scan Density 10 Armor Coverage 150 Evasion (%) 50 Recoil Reduction 2 Item Schematics ----------------- None Robot Schematics ------------------ None Fabricated ------------ Nothing Repaired ---------- Nothing Alien Tech Used ----------------- None Achievements -------------- None Challenges ------------ None Game ------ Seed BurstStormClaymores Manual? 0 Play Time 00:15:23 Cumulative 26.9 hours Start 2025.05.10 @ 12:14:21 End 2025.05.10 @ 12:34:05 Sessions 1 Manual Loads 0 Difficulty Rogue Special Mode None Game No. 39 Rogue 37 Adventurer 0 Explorer 2 Win Type - Total 0 Types 0/0/0/0/0/0/0/0/0/0 Lore% 10 Gallery% 21 Achievement% 20 Wizard Run 0 Options --------- Layout 1 ASCII 0 Keyboard 0 Movement Mouse Keybinds 0 Fullscreen 1 Font 24/Smallcaps Map View 50x35 Zoom Use 0% Tactical HUD 0 Map Filters NONE Filters NONE Steam 1 RUN: 67c845b1-3a15-446c-a9c7-06fcc17c87d9